Cogmind - Beta 16 @@@ ROGUE MODE // 2025.10.20 @ 21:40:23 Player: Jay Result: Destroyed by G-47 Trooper with Particle Gun Performance ------------- Evolutions (2) 1000 Regions Visited (3) 600 Robots Destroyed (60) 300 Value Destroyed (1565) 1565 Prototype IDs (2) 40 Alien Tech Used (0) 0 Bonus (8) 8 TOTAL SCORE: 3513 Bonus ------- High Alert Combat Kills 8 Cogmind --------- Core Integrity 0/550 Matter 300/300 Energy 300/300 System Corruption 0% Temperature Cool (9) Movement Core (200) Ox3 Location -8/Materials Parts ------- > --- POWER (1) -------- (None) > --- PROPULSION (3) --- (None) > --- UTILITY (4) ------ Medium Storage Unit Compact Battery > --- WEAPON (3) ------- (None) > --- INVENTORY (10) --- Ion Engine Light Ion Engine Improved Ion Engine Aluminum Leg Aluminum Leg VSS Leg Improved Heat Sink Shield Generator Peak State ------------ > --- POWER ------------ Light Nuclear Core > --- PROPULSION ------- Aluminum Leg Carbon-fiber Leg VSS Leg > --- UTILITY ---------- Small Storage Unit Compact Battery Advanced Weight Redist. System Reactive Plating > --- WEAPON ----------- Beam Rifle Autogun Light Cannon > --- INVENTORY -------- Ion Engine Light Ion Engine Improved Ion Engine Aluminum Leg Aluminum Leg Heat Sink Compact Battery EM Pulse Cannon [Rating: 26] Favorites ----------- Power Light Ion Engine Engine Light Ion Engine Power Core Light Nuclear Core Propulsion Aluminum Leg Leg Aluminum Leg Utility Small Storage Unit Device Terrain Scanner Storage Small Storage Unit Protection Reactive Plating Weapon Ion Cannon Energy Gun Medium Laser Energy Cannon Ion Cannon Ballistic Gun Assault Rifle Ballistic Cannon Light Cannon Build | -11 -10 -9 -8 ------- Run | Yrd Mat Mat Mat Slots Evolved 4 | . . 2 2 Power . | . . . . Propulsion 1 | . . . 1 Utility 2 | . . 1 1 Weapon 1 | . . 1 . Parts Attached 44 | 6 2 21 15 Power 8 | 1 . 5 2 Engine 6 | 1 . 5 . Core 2 | . . . 2 Reactor . | . . . . Propulsion 12 | 2 . 5 5 Treads . | . . . . Leg 12 | 2 . 5 5 Wheel . | . . . . Hover . | . . . . Flight . | . . . . Utility 10 | 1 2 2 5 Device 4 | . 1 1 2 Storage 5 | 1 1 1 2 Processor . | . . . . Hackware . | . . . . Protection 1 | . . . 1 Artifact . | . . . . Weapon 14 | 2 . 9 3 Energy Gun 4 | 2 . 2 . Energy Cannon 5 | . . 4 1 Ballistic Gun 4 | . . 2 2 Ballistic Cannon 1 | . . 1 . Launcher . | . . . . Special Weapon . | . . . . Impact Weapon . | . . . . Slashing Weapon . | . . . . Piercing Weapon . | . . . . Special Melee Weapon . | . . . . Unidentified Prototypes . | . . . . Parts Lost 29 | . . 11 18 Power 4 | . . 1 3 Propulsion 8 | . . 3 5 Utility 5 | . . 1 4 Weapon 12 | . . 6 6 Highest Loss Streak 10 | . . 4 10 To Critical Strikes 1 | . . . 1 Average Backups 6 | 2 2 6 6 Power 1 | . 1 1 2 Propulsion . | . . . 1 Utility 1 | . . 1 1 Weapon 1 | 1 1 2 . Tool/Special . | . . . . Unused Backups 6 | . . . 6 Power 3 | . . . 3 Propulsion 1 | . . . 1 Utility 2 | . . . 2 Weapon . | . . . . Tool/Special . | . . . . Average Slot Usage (%) 90 | . 94 91 87 Engine 9 | . 14 10 1 Core 1 | . . . 6 Leg 19 | . 28 15 22 Device 9 | . 3 10 11 Storage 21 | . 19 22 20 Energy Gun 12 | . 28 10 5 Energy Cannon 8 | . . 13 1 Ballistic Gun 6 | . . 7 8 Ballistic Cannon 2 | . . 1 7 Peak Build Rating 26 | 6 7 16 26 Average Rating 12 | 3 6 12 19 On Entrance 6 | . 6 7 13 Avg Prop Armor Cover (%) . | . . . . Naked Turns . | . . . . Heaviest Build 32 | 12 16 32 32 Greatest Support 46 | 20 20 20 46 Greatest Overweight (x) 6 | . . 3 6 Average Overweight (x) . | . . 1 . Largest Inventory Capacity 10 | 8 8 8 10 Average Capacity 8 | 6 8 8 8 Most Carried 8 | 5 4 8 8 Average Carried 6 | 2 2 6 6 Final Capacity 10 | 8 8 8 10 Final Carried 8 | 2 4 8 8 Class Distribution -------------------- 38% | Skirmisher 28% | Mutant 19% | Scavenger-Gunner 6% | Scavenger-Skirmisher 3% | Tank Dominant Class ---------------- Mutant | -10/Materials Skirmisher | -9/Materials Scavenger-Gunner | -8/Materials Resources | -11 -10 -9 -8 ----------- Run | Yrd Mat Mat Mat Matter Collected 1473 | 255 150 607 461 Remotely . | . . . . Salvage Created 2085 | . 172 1382 531 Parts 104 | . 12 66 26 Haulers Intercepted 1 | . . 1 . Recyclers Shooed 2 | . . 1 1 Parts Field Recycled . | . . . . Retrieved Matter . | . . . . Parts Self-Destructed . | . . . . Prevented . | . . . . Parts Restored . | . . . . Kills | -11 -10 -9 -8 ------- Run | Yrd Mat Mat Mat Combat Hostiles Destroyed 47 | . 4 32 11 Guns 17 | . 4 8 5 Cannons 30 | . . 24 6 Classes Destroyed 11 | . 3 5 3 Worker 1 | . . . 1 Builder 2 | . . . 2 Hauler 1 | . . 1 . Recycler 3 | . . 2 1 Mechanic 1 | . . 1 . Watcher 5 | . 3 2 . Swarmer 16 | . 3 10 3 Grunt 23 | . 1 16 6 Brawler 1 | . . 1 . Sentry 5 | . . 5 . Specialist 2 | . . . 2 Best Kill Streak 7 | . 3 5 7 Combat Bots Only 6 | . 3 5 6 Max Kills in Single Turn 2 | . 1 2 2 Gunslinging . | . . . . Exploded . | . . . . Melee . | . . . . Uniques/NPCs Destroyed . | . . . . Combat | -11 -10 -9 -8 -------- Run | Yrd Mat Mat Mat Hostile Shots Fired 439 | . 34 192 213 Missed 126 | . 9 52 65 Hits 313 | . 25 140 148 Projectile 313 | . 25 140 148 Critical Strikes 8 | . . 2 6 Damage Taken 4089 | . 254 1490 2345 Core 901 | . 41 294 566 Absorbed by Shields . | . . . . Ignored by Resistances 192 | . . . 192 Regen/Repaired (Parts) 203 | . . 60 143 Core Remaining (%) 69 | 100 83 26 . Volleys Fired 146 | . 19 80 47 Largest 3 | . 2 3 3 Hottest 185 | . 90 185 116 Shots Fired 380 | . 38 213 129 Gun 221 | . 38 109 74 Cannon 159 | . . 104 55 Launcher . | . . . . Special . | . . . . Kinetic 156 | . . 68 88 Thermal 189 | . 19 141 29 Explosive . | . . . . Electromagnetic 35 | . 19 4 12 Robot Hit Streak 13 | . 10 13 10 Robot Miss Streak 8 | . 3 8 5 Penetration Max . | . . . . Secondary Targets 3 | . 1 2 . Max Gunslinging Chain 1 | . 1 1 . Shots Hit Robots 204 | . 23 111 70 Core Hits 86 | . 8 48 30 Critical Kills . | . . . . Critical Parts Destroyed . | . . . . Critical Strikes 14 | . 2 9 3 Burn 11 | . 2 9 . Blast 3 | . . . 3 Melee Attacks . | . . . . Impact . | . . . . Slashing . | . . . . Piercing . | . . . . Sneak Attacks . | . . . . Combat Hostiles . | . . . . Follow-up Attacks . | . . . . Damage Inflicted 3841 | . 344 2090 1407 Guns 1660 | . 300 772 588 Cannons 1984 | . . 1318 666 Explosions 197 | . 44 . 153 Melee . | . . . . Ramming . | . . . . Kinetic 1328 | . . 506 822 Thermal 2163 | . 206 1560 397 Explosive . | . . . . Electromagnetic 350 | . 138 24 188 Impact . | . . . . Slashing . | . . . . Piercing . | . . . . Highest Corruption . | . . . . Average Corruption . | . . . . Corruption Purged . | . . . . Corruption Blocked . | . . . . Overload Shots . | . . . . Overflow Damage 30 | . . 22 8 Projectiles 30 | . . 22 8 Explosions . | . . . . Melee . | . . . . Knockbacks 14 | . . 3 11 Impact . | . . . . Kinetic 13 | . . 3 10 Secondary 1 | . . . 1 Self-Inflicted Damage . | . . . . Shots . | . . . . Rammed . | . . . . Targets Rammed . | . . . . Kicked . | . . . . Crushed . | . . . . Highest Temperature 449 | . 351 449 414 Average Temperature 115 | . 99 122 103 Received Heat Transfer 1116 | . 111 429 576 Effects 14 | . . 13 1 Shutdowns 1 | . . 1 . Energy Bleed 2 | . . 2 . Matter Decay 3 | . . 2 1 Short Circuit 1 | . . 1 . Damage (major) 7 | . . 7 . Siege Activations . | . . . . Martial Activations . | . . . . Shielding Activations . | . . . . Robots Disrupted . | . . . . Combat Hostiles . | . . . . Robots Corrupted . | . . . . Combat Hostiles . | . . . . Parts Fried . | . . . . Impact Corruptions . | . . . . Robots Melted . | . . . . Combat Hostiles . | . . . . Parts Melted 12 | . 1 9 2 Heat Transferred 5097 | . 679 3589 829 Parts Sabotaged . | . . . . Parts Stolen . | . . . . Parts Stripped . | . . . . Power Chain Reactions 2 | . 1 . 1 Alert | -11 -10 -9 -8 ------- Run | Yrd Mat Mat Mat Maximum Alert Level 2 | . . 2 1 Low Security (%) 71 | 100 100 67 56 Level 1 27 | . . 30 43 Level 2 . | . . 1 . Level 3 . | . . . . Level 4 . | . . . . Level 5 . | . . . . High Security . | . . . . Max Security . | . . . . Peak Influence 405 | . 82 405 278 Initial 170 | . . 14 170 Average 122 | . 24 127 192 Influence Increases 1433 | . 171 891 371 Destroy 0b10 Robot/C 940 | . 80 640 220 Destroy 0b10 Robot/NC 65 | . 15 30 20 Destroy Leader 222 | . 26 156 40 Successful Hack 29 | . . 5 24 Disable Machine 45 | . 15 . 30 Destroy Structure 27 | . 5 15 7 Partial Spotted 15 | . 15 . . Lose Combat Pursuer 90 | . 15 45 30 Influence Decreases 1318 | . 135 522 661 Entered New Map 257 | . . 22 235 Time Decay 781 | . 135 400 246 Lost Part 280 | . . 100 180 Squads Dispatched 10 | . 2 5 3 Investigation 4 | . 1 2 1 Extermination . | . . . . Reinforcement 6 | . 1 3 2 Assault . | . . . . Garrison . | . . . . Intercept . | . . . . Searches Triggered . | . . . . Construction Impeded . | . . . . Haulers Reinforced . | . . . . Active Scanning Responses . | . . . . Cargo Convoy Interrupts . | . . . . Stealth | -11 -10 -9 -8 --------- Run | Yrd Mat Mat Mat Distress Signals 3 | . . 1 2 Communications Jammed . | . . . . Distress Signals . | . . . . Times Spotted 77 | . 12 46 19 Peak Tracking Total 6 | . 3 6 6 Tactical Retreats 6 | . 1 3 2 Traps | -11 -10 -9 -8 ------- Run | Yrd Mat Mat Mat Traps Triggered 2 | . 1 1 . Indirectly . | . . . . Trap Hack Attempts . | . . . . Triggered . | . . . . Disarmed . | . . . . Reprogrammed . | . . . . Reused . | . . . . Traps Extracted . | . . . . Installed . | . . . . Triggered . | . . . . Machines | -11 -10 -9 -8 ---------- Run | Yrd Mat Mat Mat Machines Disabled 3 | . 1 . 2 Max in Single Turn 1 | . 1 . 1 Machines Repaired . | . . . . Machines Dismantled . | . . . . Machines Sabotaged . | . . . . Overloaded Fab Kills . | . . . . Hacking | -11 -10 -9 -8 --------- Run | Yrd Mat Mat Mat Machines Accessed 7 | . 1 3 3 Terminals 4 | . 1 1 2 Fabricators . | . . . . Repair Stations 2 | . . 1 1 Recycling Units . | . . . . Scanalyzers 1 | . . 1 . Garrison Access . | . . . . Total Hacks 25 | . 2 11 12 Successful 19 | . 2 8 9 Failed 6 | . . 3 3 Catastrophic . | . . . . Database Lockouts . | . . . . Manual . | . . . . Terminals 10 | . 2 2 6 Fabricators . | . . . . Repair Stations 11 | . . 5 6 Recycling Units . | . . . . Scanalyzers 4 | . . 4 . Garrison Access . | . . . . Terminal Hacks 8 | . 2 2 4 Record 6 | . 2 1 3 Prototype ID Bank 1 | . . . 1 Alert Level 1 | . . 1 . Fabricator Hacks . | . . . . Repair Station Hacks 7 | . . 2 5 Scan Component 4 | . . 1 3 Repair 3 | . . 1 2 Recycling Unit Hacks . | . . . . Scanalyzer 4 | . . 4 . Insert Component 2 | . . 2 . Analyze 1 | . . 1 . Retrieve Study 1 | . . 1 . Garrison Access Hacks . | . . . . Unauthorized Hacks . | . . . . Terminals . | . . . . Fabricators . | . . . . Repair Stations . | . . . . Recycling Units . | . . . . Scanalyzers . | . . . . Garrison Access . | . . . . Data Cores Recovered . | . . . . Used . | . . . . Hacking Detections 6 | . . 3 3 Full Trace Events 3 | . . 2 1 Feedback Events . | . . . . Feedback Blocked . | . . . . Robot Schematics Acquired . | . . . . Robots Built . | . . . . Authchips . | . . . . Time . | . . . . Total Robot Build Rating . | . . . . Part Schematics Acquired 1 | . . 1 . Parts Built . | . . . . Authchips . | . . . . Time . | . . . . Total Part Build Rating . | . . . . Part Studies Acquired 1 | . . 1 . Parts Repaired 3 | . . 1 2 Time 78 | . . 26 52 Parts Recycled . | . . . . Recycled Matter . | . . . . Retrieved Matter . | . . . . Retrieved Components . | . . . . Parts Scanalyzed 1 | . . 1 . Part Schematics Acquired 1 | . . 1 . Parts Damaged . | . . . . Bothacking | -11 -10 -9 -8 ------------ Run | Yrd Mat Mat Mat Used RIF Installer . | . . . . Robots Hacked . | . . . . Non-combat . | . . . . Combat . | . . . . Robot Hacks Applied . | . . . . Relay Couplers Released . | . . . . Fabnet Peak Effective % . | . . . . Robots Rewired . | . . . . Allies Hacked . | . . . . Hacks Repelled . | . . . . Allies | -11 -10 -9 -8 -------- Run | Yrd Mat Mat Mat Total Allies . | . . . . Largest Group . | . . . . Highest-Rated Group . | . . . . Highest-Rated Ally . | . . . . Total Orders . | . . . . Ally Attacks . | . . . . Total Damage . | . . . . Kills . | . . . . Allies Corrupted . | . . . . Allies Melted . | . . . . Intel | -11 -10 -9 -8 ------- Run | Yrd Mat Mat Mat Active Infowar (turns) 1179 | . 85 1094 . Terrain 1179 | . 85 1094 . Robot Analysis Total . | . . . . Derelict Logs Recovered . | . . . . Drone Launches . | . . . . Drone Recoveries . | . . . . Exploration | -11 -10 -9 -8 ------------- Run | Yrd Mat Mat Mat Turns Passed 2230 | 62 363 1278 527 Spaces Moved 951 | 49 193 470 239 Core 26 | 13 . . 13 Treads . | . . . . Legs 925 | 36 193 470 226 Wheels . | . . . . Hover . | . . . . Flight . | . . . . Fastest Speed 50 | 50 120 105 105 Average Speed 158 | 101 120 200 117 Slowest Speed 350 | 120 120 330 350 Overloaded Moves . | . . . . Propulsion Burnouts . | . . . . Robots Hopped . | . . . . Potential Cave-ins . | . . . . Cave-ins Triggered . | . . . . Exploration Rate (%) 24 | 4 28 51 14 Regions Visited 3 Branch Regions . Pre-discovered Areas . | . . . . Known Exits Taken . | . . . . Unknown Exits Taken 3 | 1 1 1 . Scrap Searched . | . . . . Spaces Dug . | . . . . Terrain Destroyed 21 | . 4 13 4 Melee . | . . . . Projectile 13 | . . 13 . AOE 8 | . 4 . 4 Terrain Rammed . | . . . . Walls Destroyed . | . . . . Machines Disabled . | . . . . Actions | -11 -10 -9 -8 --------- Run | Yrd Mat Mat Mat Total 1381 | 60 286 644 391 Wait 178 | . 70 40 68 Move 948 | 48 192 469 239 Hop . | . . . . Pick Up 45 | 6 3 23 13 Fast Attach 10 | 2 . 2 6 Attach 35 | 4 1 19 11 Detach . | . . . . Swap 4 | . 1 2 1 Drop 15 | . . 9 6 Fire 146 | . 19 80 47 Melee . | . . . . Ram . | . . . . Kick . | . . . . Crush . | . . . . Escape Stasis . | . . . . Rewire . | . . . . Trap . | . . . . Miscellaneous . | . . . . Route ------- -11/Scrapyard -10/Materials -9/Materials -8/Materials History --------- Turn | Location | Event 7 | -11/Scrapyard | Discovered new exit (range 15) 63 | -11/Scrapyard | Entered Materials 303 | -10/Materials | Build established: Mutant 381 | -10/Materials | Discovered new exit (range 8) 426 | -10/Materials | Entered another Materials area 426 | -9/Materials | Evolved 2 slots: Utility x1, Weapon x1 753 | -9/Materials | Repaired Aluminum Leg 869 | -9/Materials | Build established: Skirmisher 1256 | -9/Materials | Core integrity fell below 50% 1642 | -9/Materials | Lost 4 parts (1n1u2w) 1701 | -9/Materials | Discovered new exit (range 4) 1704 | -9/Materials | Entered another Materials area 1704 | -8/Materials | Evolved 2 slots: Propulsion x1, Utility x1 1826 | -8/Materials | Build established: Scavenger-Gunner 1899 | -8/Materials | Repaired Aluminum Leg+ 1927 | -8/Materials | Repaired Lgt. Cannon 2066 | -8/Materials | Lost 6 parts (1p2n2u1w) 2162 | -8/Materials | Core integrity fell below 50% 2196 | -8/Materials | Core integrity fell below 20% 2231 | -8/Materials | Destroyed by G-47 Trooper with Particle Gun Last Messages --------------- 02169_ Aluminum Leg+ destroyed. 02171_ Autogun destroyed. 02172_ K-01 Serf collects debris. 02175_ U-05 Engineer builds a Wall. 02176_ Acquired 2 matter. 02177_ K-01 Serf collects debris. 02181_ U-05 Engineer suffers critical hit (Burn). 02181_ K-01 Serf collects debris. 02184_ Carbon-fiber Leg destroyed. 02187_ K-01 Serf collects debris. 02187_ Knocked back. 02190_ K-01 Serf collects debris. 02192_ Knocked back. 02193_ Acquired 4 matter. 02198_ K-01 Serf destroyed. 02200_ Acquired 4 matter. 02203_ Hpw. Shotgun destroyed. 02206_ Nuclear Core destroyed. 02217_ Acquired Aluminum Leg+. 02222_ Acquired Corrupted Aluminum Leg+. Map ----- +----------------------------------------------------+ | ?????????????????????????????????? | | ?????????????????????????????????? | | ?????????????????????????????????? | | ?????????????????????????????????? | | ?????????#???????????????????????? | | ?????????# ??????????????????????? | | ?????????# ?????????????????????? | | ????????## #???????????????????? | | ????????# ########???????????? | | ???????? ####????????? | | ?????????? % !##???????? | | ????????????? % % %!#???????? | | ????????????????## % !#???????? | | ?????????????????# !#???????? | | ?????????????????# !#???????? | | ????????????????##% !##???????? | | ????????????????## ##########??? | | ????????????????## # #??? | | ?????????????????#*%H# !""" #??? | | ?????????????????#% # """ #??? | | ????????????????## # "" #??? | | ????????????????## # #??? | | ????????? ?????## #""" "" #??? | | ????????? ??????# #"R """ #??? | | ????????? ??????# #" = " #??? | | ?????###? #?????# #* =@! #??? | | ??? # ####### % ####g#####??? | | ??? ?# % =g ##?????? | | """ ?# = ##?????? | | """ + ########+#######??????? | | # #??# #???????????? | | "" ???# #??# [ ""#???????????? | | S"" ???+ #??# T"#???????????? | | ?"" ????# #??# ""#???????????? | | ? ????# #??# = #???????????? | | ##+##???# #??# = #???????????? | | ##### #####+###+#???????????? | | T !=% #???????????? | | "" %%!% #???????????? | | ##%#########+## +???????????? | | #####% * ## # #???????????? | | ????#=[ ## "" ! #? #???????????? | | ????# ## "T #??#???????????? | | ????# ## "" #??????????????? | | ????# ## ] #??????????????? | | ????# ## / #??????????????? | | ????###############??????????????? | | | | | | | +----------------------------------------------------+ Best States ------------- Heat Dissipation 41 Energy Generation 14 Energy Capacity 640 Matter Stores 500 Matter Capacity 500 Sight Range 16 Terrain Scan Range 14 Terrain Scan Density 10 Additional Mass Support 9 Armor Coverage 150 Resistance: KI 20 Evasion (%) 55 Item Schematics ----------------- Aluminum Leg | -9/Materials | Scanalyzed Robot Schematics ------------------ None Fabricated ------------ Nothing Repaired ---------- Aluminum Leg | 33% | -9/Materials Aluminum Leg | 68% | -8/Materials Lgt. Cannon | 4% | -8/Materials Studied --------- Aluminum Leg | -9/Materials | Hacked Alien Tech Used ----------------- None Achievements -------------- Bumper Bots Heavy Suspicion Item+ Challenges ------------ None Game ------ Seed MiniContainmentTelecube Manual? 0 Play Time 00:31:04 Cumulative 52.8 hours Start 2025.10.20 @ 20:51:18 End 2025.10.20 @ 21:40:23 Sessions 1 Manual Loads 0 Difficulty Rogue Special Mode None Game No. 97 Rogue 85 Adventurer 12 Explorer 0 Win Type - Total 0 Types 0/0/0/0/0/0/0/0/0/0 Lore% 10 Gallery% 23 Achievement% 12 Wizard Run 0 Options --------- Layout 0 ASCII 0 Keyboard 0 Movement Mouse Keybinds 0 Fullscreen 2 Font 18/SmallcapsGlow Map View 38x25 Zoom Use 99% Tactical HUD 1 Map Filters NONE Filters NONE Steam 1 RUN: 105bdc71-9025-45dd-89c9-3d0d87c345a5